[Event "Grandmaster Triathlon (GM1)"]
[Site "Biel, CH"]
[Date "2025.07.13"]
[Round "1"]
[White "Svane, Frederik"]
[Black "Wojtaszek, Radoslaw"]
[Result "1-0"]
[Board "1"]
[TimeControl "900+5"]
[WhiteFideId "12923044"]
[BlackFideId "1118358"]
[WhiteTitle "GM"]
[BlackTitle "GM"]
[WhiteElo "2487"]
[BlackElo "2657"]
[WhiteTeam "GER"]
[BlackTeam "POL"]
[WhiteClock "0:00:16"]
[BlackClock "0:00:09"]
[Variant "Standard"]

1. e4 {[%clk 0:15:09]}  c6 {[%clk 0:15:08]} 2. d4 {[%clk 0:15:09]}  d5 {[%clk 0:15:12]} 3. exd5 {[%clk 0:15:13]}  cxd5 {[%clk 0:15:15]} 4. Nf3 {[%clk 0:15:17]}  Nc6 {[%clk 0:15:16]} 5. h3 {[%clk 0:15:20]}  e6 {[%clk 0:15:11]} 6. Bd3 {[%clk 0:15:17]}  Bd6 {[%clk 0:15:11]} 7. O-O {[%clk 0:15:11]}  Nge7 {[%clk 0:15:13]} 8. b3 {[%clk 0:14:59]}  O-O {[%clk 0:14:26]} 9. c4 {[%clk 0:14:23]}  h6 {[%clk 0:12:19]} 10. Nc3 {[%clk 0:13:52]}  b6 {[%clk 0:12:22]} 11. Nb5 {[%clk 0:12:10]}  Bb8 {[%clk 0:12:20]} 12. Re1 {[%clk 0:11:20]}  a6 {[%clk 0:10:52]} 13. Nc3 {[%clk 0:11:24]}  Qd6 {[%clk 0:10:32]} 14. a4 {[%clk 0:08:34]}  Rd8 {[%clk 0:08:39]} 15. Ba3 {[%clk 0:08:27]}  Qf4 {[%clk 0:08:32]} 16. Rc1 {[%clk 0:06:29]}  Bd6 {[%clk 0:05:35]} 17. Ne2 {[%clk 0:05:07]}  Qf6 {[%clk 0:05:30]} 18. Bxd6 {[%clk 0:05:04]}  Rxd6 {[%clk 0:05:34]} 19. Qd2 {[%clk 0:04:49]}  dxc4 {[%clk 0:03:20]} 20. bxc4 {[%clk 0:04:52]}  Bb7 {[%clk 0:03:24]} 21. Be4 {[%clk 0:03:46]}  Nf5 {[%clk 0:02:59]} 22. Qf4 {[%clk 0:02:38]}  g5 {[%clk 0:01:55]} 23. Qh2 {[%clk 0:02:35]}  Rad8 {[%clk 0:01:58]} 24. Bxf5 {[%clk 0:01:34]}  Qxf5 {[%clk 0:01:47]} 25. Rb1 {[%clk 0:00:57]}  Ba8 {[%clk 0:00:18]} 26. Rxb6 {[%clk 0:00:46]}  R6d7 {[%clk 0:00:17]} 27. Ng3 {[%clk 0:00:14]}  Qg6 {[%clk 0:00:12]} 28. Rxc6 {[%clk 0:00:11]}  Bxc6 {[%clk 0:00:11]} 29. Ne5 {[%clk 0:00:16]}  Qc2 {[%clk 0:00:08]} 30. Nxc6 {[%clk 0:00:18]}  Rc8 {[%clk 0:00:12]} 31. Ne4 {[%clk 0:00:15]}  Rb7 {[%clk 0:00:07]} 32. Qd6 {[%clk 0:00:13]}  Kg7 {[%clk 0:00:07]} 33. Qe5+ {[%clk 0:00:16]}  Kg6 {[%clk 0:00:09]} 34. Nd6 {[%clk 0:00:16]} 1-0

[Event "Grandmaster Triathlon (GM1)"]
[Site "Biel, CH"]
[Date "2025.07.13"]
[Round "1"]
[White "Murzin, Volodar"]
[Black "Salem, A.R. Saleh"]
[Result "1/2-1/2"]
[Board "2"]
[TimeControl "900+5"]
[WhiteFideId "44155573"]
[BlackFideId "9301348"]
[WhiteTitle "GM"]
[BlackTitle "GM"]
[WhiteElo "2644"]
[BlackElo "2637"]
[WhiteTeam "FID"]
[BlackTeam "UAE"]
[WhiteClock "0:00:31"]
[BlackClock "0:00:07"]
[Variant "Standard"]

1. d4 {[%clk 0:15:04]}  Nf6 {[%clk 0:12:46]} 2. Nf3 {[%clk 0:15:06]}  g6 {[%clk 0:12:49]} 3. g3 {[%clk 0:14:51]}  Bg7 {[%clk 0:12:24]} 4. Bg2 {[%clk 0:14:54]}  d5 {[%clk 0:12:08]} 5. O-O {[%clk 0:14:55]}  O-O {[%clk 0:12:11]} 6. c4 {[%clk 0:14:58]}  c6 {[%clk 0:12:07]} 7. b3 {[%clk 0:14:21]}  dxc4 {[%clk 0:11:44]} 8. bxc4 {[%clk 0:14:24]}  c5 {[%clk 0:11:48]} 9. Bb2 {[%clk 0:14:00]}  cxd4 {[%clk 0:10:53]} 10. Nxd4 {[%clk 0:14:03]}  Qb6 {[%clk 0:10:42]} 11. Nb3 {[%clk 0:13:34]}  Rd8 {[%clk 0:10:03]} 12. Qc1 {[%clk 0:10:50]}  Be6 {[%clk 0:07:12]} 13. N1d2 {[%clk 0:08:55]}  Nc6 {[%clk 0:06:36]} 14. Rb1 {[%clk 0:08:51]}  a5 {[%clk 0:03:43]} 15. Bc3 {[%clk 0:08:13]}  Qa7 {[%clk 0:03:07]} 16. Qa3 {[%clk 0:05:45]}  Nd7 {[%clk 0:01:33]} 17. Bxg7 {[%clk 0:05:47]}  Kxg7 {[%clk 0:01:37]} 18. Ne4 {[%clk 0:02:39]}  Bf5 {[%clk 0:01:41]} 19. Rb2 {[%clk 0:02:07]}  Rac8 {[%clk 0:01:13]} 20. Nbc5 {[%clk 0:00:43]}  b6 {[%clk 0:00:56]} 21. Nxd7 {[%clk 0:00:38]}  Rxd7 {[%clk 0:00:58]} 22. c5 {[%clk 0:00:36]}  bxc5 {[%clk 0:00:20]} 23. Nxc5 {[%clk 0:00:39]}  Rdc7 {[%clk 0:00:15]} 24. e4 {[%clk 0:00:10]}  Nd4 {[%clk 0:00:18]} 25. Nb3 {[%clk 0:00:10]}  Nxb3 {[%clk 0:00:13]} 26. axb3 {[%clk 0:00:09]}  Be6 {[%clk 0:00:13]} 27. b4 {[%clk 0:00:10]}  axb4 {[%clk 0:00:11]} 28. Qxa7 {[%clk 0:00:11]}  Rxa7 {[%clk 0:00:15]} 29. Rxb4 {[%clk 0:00:15]}  Rc2 {[%clk 0:00:18]} 30. e5 {[%clk 0:00:08]}  Raa2 {[%clk 0:00:09]} 31. Rf4 {[%clk 0:00:06]}  g5 {[%clk 0:00:13]} 32. Rf3 {[%clk 0:00:10]}  Bd5 {[%clk 0:00:08]} 33. Rf5 {[%clk 0:00:14]}  Bxg2 {[%clk 0:00:11]} 34. Kxg2 {[%clk 0:00:16]}  Kg6 {[%clk 0:00:12]} 35. Rf3 {[%clk 0:00:08]}  Re2 {[%clk 0:00:14]} 36. Rb3 {[%clk 0:00:11]}  Rxe5 {[%clk 0:00:17]} 37. Rb4 {[%clk 0:00:15]}  h5 {[%clk 0:00:17]} 38. h3 {[%clk 0:00:15]}  Rf5 {[%clk 0:00:19]} 39. Rb3 {[%clk 0:00:17]}  g4 {[%clk 0:00:19]} 40. hxg4 {[%clk 0:00:19]}  hxg4 {[%clk 0:00:23]} 41. Rb8 {[%clk 0:00:19]}  Kf6 {[%clk 0:00:10]} 42. Rg8 {[%clk 0:00:21]}  Rg5 {[%clk 0:00:14]} 43. Rxg5 {[%clk 0:00:24]}  Kxg5 {[%clk 0:00:18]} 44. Re1 {[%clk 0:00:27]}  e6 {[%clk 0:00:18]} 45. Re5+ {[%clk 0:00:31]}  Kg6 {[%clk 0:00:07]} 1/2-1/2

[Event "Grandmaster Triathlon (GM1)"]
[Site "Biel, CH"]
[Date "2025.07.13"]
[Round "1"]
[White "Aravindh, Chithambaram VR."]
[Black "Fedoseev, Vladimir"]
[Result "1/2-1/2"]
[Board "3"]
[TimeControl "900+5"]
[WhiteFideId "5072786"]
[BlackFideId "24130737"]
[WhiteTitle "GM"]
[BlackTitle "GM"]
[WhiteElo "2576"]
[BlackElo "2740"]
[WhiteTeam "IND"]
[BlackTeam "SLO"]
[WhiteClock "0:00:27"]
[BlackClock "0:00:37"]
[Variant "Standard"]

1. d4 {[%clk 0:15:08]}  d5 {[%clk 0:15:09]} 2. c4 {[%clk 0:15:11]}  e6 {[%clk 0:15:11]} 3. Nc3 {[%clk 0:15:12]}  a6 {[%clk 0:15:15]} 4. cxd5 {[%clk 0:14:52]}  exd5 {[%clk 0:15:18]} 5. Nf3 {[%clk 0:14:49]}  Nf6 {[%clk 0:15:11]} 6. Bg5 {[%clk 0:14:40]}  Be7 {[%clk 0:15:13]} 7. e3 {[%clk 0:14:42]}  h6 {[%clk 0:15:17]} 8. Bh4 {[%clk 0:14:43]}  Nbd7 {[%clk 0:15:16]} 9. Bd3 {[%clk 0:14:29]}  c6 {[%clk 0:15:20]} 10. Qc2 {[%clk 0:14:17]}  O-O {[%clk 0:15:04]} 11. O-O {[%clk 0:14:19]}  Ne8 {[%clk 0:14:49]} 12. Bg3 {[%clk 0:13:59]}  Bd6 {[%clk 0:14:18]} 13. Ne5 {[%clk 0:12:41]}  Nxe5 {[%clk 0:12:55]} 14. dxe5 {[%clk 0:12:41]}  Be7 {[%clk 0:12:56]} 15. Rad1 {[%clk 0:10:44]}  Be6 {[%clk 0:10:42]} 16. Ne2 {[%clk 0:10:47]}  Nc7 {[%clk 0:10:16]} 17. Nd4 {[%clk 0:09:20]}  Bd7 {[%clk 0:09:45]} 18. e4 {[%clk 0:05:48]}  Bh4 {[%clk 0:08:47]} 19. Nf5 {[%clk 0:04:54]}  Bxg3 {[%clk 0:08:27]} 20. hxg3 {[%clk 0:04:58]}  f6 {[%clk 0:05:58]} 21. exd5 {[%clk 0:04:40]}  Bxf5 {[%clk 0:05:14]} 22. Bxf5 {[%clk 0:04:27]}  Nxd5 {[%clk 0:05:18]} 23. e6 {[%clk 0:03:32]}  Qe7 {[%clk 0:05:03]} 24. Rd4 {[%clk 0:03:00]}  Rad8 {[%clk 0:05:01]} 25. Rfd1 {[%clk 0:03:00]}  Rd6 {[%clk 0:04:49]} 26. Qe4 {[%clk 0:03:01]}  Rfd8 {[%clk 0:04:54]} 27. Qg4 {[%clk 0:02:08]}  Qe8 {[%clk 0:04:15]} 28. e7 {[%clk 0:01:34]}  Qxe7 {[%clk 0:04:03]} 29. Re4 {[%clk 0:01:38]}  Qf7 {[%clk 0:02:47]} 30. Rde1 {[%clk 0:01:26]}  h5 {[%clk 0:02:29]} 31. Qf3 {[%clk 0:01:28]}  Kf8 {[%clk 0:02:16]} 32. Be6 {[%clk 0:01:09]}  Qg6 {[%clk 0:02:06]} 33. g4 {[%clk 0:01:00]}  hxg4 {[%clk 0:01:01]} 34. Bxg4 {[%clk 0:00:46]}  Qg5 {[%clk 0:00:55]} 35. Qh3 {[%clk 0:00:38]}  Qh6 {[%clk 0:00:56]} 36. Qg3 {[%clk 0:00:38]}  g6 {[%clk 0:00:43]} 37. Bf3 {[%clk 0:00:18]}  Kg7 {[%clk 0:00:39]} 38. Rh4 {[%clk 0:00:17]}  Qd2 {[%clk 0:00:38]} 39. Rd1 {[%clk 0:00:17]}  Qxb2 {[%clk 0:00:28]} 40. Qh3 {[%clk 0:00:09]}  f5 {[%clk 0:00:31]} 41. Rh7+ {[%clk 0:00:10]}  Kg8 {[%clk 0:00:36]} 42. Re1 {[%clk 0:00:10]}  Nf6 {[%clk 0:00:23]} 43. Rhe7 {[%clk 0:00:07]}  Qd2 {[%clk 0:00:10]} 44. Qg3 {[%clk 0:00:08]}  Ne4 {[%clk 0:00:15]} 45. Bxe4 {[%clk 0:00:09]}  Qxe1+ {[%clk 0:00:18]} 46. Kh2 {[%clk 0:00:14]}  Qxe4 {[%clk 0:00:11]} 47. Rxe4 {[%clk 0:00:14]}  fxe4 {[%clk 0:00:15]} 48. Qb3+ {[%clk 0:00:18]}  Kf8 {[%clk 0:00:12]} 49. Qxb7 {[%clk 0:00:21]}  c5 {[%clk 0:00:09]} 50. Qxe4 {[%clk 0:00:21]}  Rc8 {[%clk 0:00:10]} 51. Qc4 {[%clk 0:00:16]}  Rcc6 {[%clk 0:00:10]} 52. Kg3 {[%clk 0:00:10]}  Rd4 {[%clk 0:00:13]} 53. Qc3 {[%clk 0:00:12]}  Ke7 {[%clk 0:00:16]} 54. f4 {[%clk 0:00:12]}  Kd7 {[%clk 0:00:14]} 55. Kg4 {[%clk 0:00:13]}  Kc7 {[%clk 0:00:11]} 56. g3 {[%clk 0:00:15]}  Rd5 {[%clk 0:00:11]} 57. Qc4 {[%clk 0:00:18]}  Rd4 {[%clk 0:00:15]} 58. Qc3 {[%clk 0:00:21]}  Rd5 {[%clk 0:00:14]} 59. Qc4 {[%clk 0:00:25]}  Rcd6 {[%clk 0:00:17]} 60. Kh4 {[%clk 0:00:22]}  g5+ {[%clk 0:00:17]} 61. Kg4 {[%clk 0:00:22]}  gxf4 {[%clk 0:00:18]} 62. gxf4 {[%clk 0:00:26]}  Kb6 {[%clk 0:00:22]} 63. Qb3+ {[%clk 0:00:29]}  Kc6 {[%clk 0:00:25]} 64. Qa4+ {[%clk 0:00:33]}  Kb7 {[%clk 0:00:29]} 65. Qb3+ {[%clk 0:00:36]}  Kc7 {[%clk 0:00:29]} 66. Qc4 {[%clk 0:00:30]}  Kb6 {[%clk 0:00:20]} 67. Qb3+ {[%clk 0:00:33]}  Ka7 {[%clk 0:00:20]} 68. Qc4 {[%clk 0:00:28]}  Rd7 {[%clk 0:00:22]} 69. Qc3 {[%clk 0:00:25]}  Rf7 {[%clk 0:00:21]} 70. Kg3 {[%clk 0:00:10]}  Rdf5 {[%clk 0:00:21]} 71. Qc4 {[%clk 0:00:12]}  R7f6 {[%clk 0:00:24]} 72. a4 {[%clk 0:00:08]}  Kb6 {[%clk 0:00:28]} 73. Qb3+ {[%clk 0:00:10]}  Ka5 {[%clk 0:00:32]} 74. Qc4 {[%clk 0:00:13]}  Rg6+ {[%clk 0:00:24]} 75. Kf3 {[%clk 0:00:16]}  Rb6 {[%clk 0:00:24]} 76. Qc2 {[%clk 0:00:07]}  Rbf6 {[%clk 0:00:27]} 77. Ke3 {[%clk 0:00:08]}  Kb4 {[%clk 0:00:29]} 78. Qb2+ {[%clk 0:00:07]}  Kxa4 {[%clk 0:00:30]} 79. Qa2+ {[%clk 0:00:08]}  Kb5 {[%clk 0:00:33]} 80. Qb3+ {[%clk 0:00:12]}  Kc6 {[%clk 0:00:33]} 81. Qa4+ {[%clk 0:00:17]}  Kb6 {[%clk 0:00:35]} 82. Qb3+ {[%clk 0:00:20]}  Kc7 {[%clk 0:00:39]} 83. Qc4 {[%clk 0:00:17]}  Rd6 {[%clk 0:00:39]} 84. Qc2 {[%clk 0:00:11]}  Re6+ {[%clk 0:00:39]} 85. Kf3 {[%clk 0:00:11]}  Ref6 {[%clk 0:00:42]} 86. Ke3 {[%clk 0:00:15]}  Kd6 {[%clk 0:00:41]} 87. Qd3+ {[%clk 0:00:16]}  Ke7 {[%clk 0:00:45]} 88. Qc3 {[%clk 0:00:13]}  Kf7 {[%clk 0:00:47]} 89. Qb3+ {[%clk 0:00:13]}  Kg7 {[%clk 0:00:42]} 90. Qb7+ {[%clk 0:00:14]}  Kh6 {[%clk 0:00:45]} 91. Qh1+ {[%clk 0:00:15]}  Kg7 {[%clk 0:00:45]} 92. Qb7+ {[%clk 0:00:17]}  Rf7 {[%clk 0:00:47]} 93. Qg2+ {[%clk 0:00:20]}  Kh6 {[%clk 0:00:43]} 94. Qh3+ {[%clk 0:00:17]}  Kg6 {[%clk 0:00:46]} 95. Qg2+ {[%clk 0:00:21]}  Kf6 {[%clk 0:00:47]} 96. Qc6+ {[%clk 0:00:24]}  Ke7 {[%clk 0:00:33]} 97. Qb7+ {[%clk 0:00:28]}  Kf8 {[%clk 0:00:18]} 98. Qa8+ {[%clk 0:00:29]}  Ke7 {[%clk 0:00:21]} 99. Qb7+ {[%clk 0:00:31]}  Kf6 {[%clk 0:00:13]} 100. Qc6+ {[%clk 0:00:25]}  Kg7 {[%clk 0:00:17]} 101. Qg2+ {[%clk 0:00:29]}  Kh6 {[%clk 0:00:20]} 102. Qh3+ {[%clk 0:00:31]}  Rh5 {[%clk 0:00:20]} 103. Qe6+ {[%clk 0:00:32]}  Kg7 {[%clk 0:00:24]} 104. Qg4+ {[%clk 0:00:25]}  Kh6 {[%clk 0:00:28]} 105. Qe6+ {[%clk 0:00:23]}  Kg7 {[%clk 0:00:33]} 106. Qg4+ {[%clk 0:00:27]}  Kh6 {[%clk 0:00:37]} 1/2-1/2

[Event "Grandmaster Triathlon (GM1)"]
[Site "Biel, CH"]
[Date "2025.07.13"]
[Round "2"]
[White "Aravindh, Chithambaram VR."]
[Black "Svane, Frederik"]
[Result "1-0"]
[Board "1"]
[TimeControl "900+5"]
[WhiteFideId "5072786"]
[BlackFideId "12923044"]
[WhiteTitle "GM"]
[BlackTitle "GM"]
[WhiteElo "2576"]
[BlackElo "2487"]
[WhiteTeam "IND"]
[BlackTeam "GER"]
[WhiteClock "0:01:25"]
[BlackClock "0:00:06"]
[Variant "Standard"]

1. d4 {[%clk 0:15:08]}  Nf6 {[%clk 0:15:09]} 2. Nf3 {[%clk 0:15:09]}  d5 {[%clk 0:15:13]} 3. e3 {[%clk 0:15:10]}  e6 {[%clk 0:14:55]} 4. Bd3 {[%clk 0:15:11]}  c5 {[%clk 0:14:47]} 5. b3 {[%clk 0:15:12]}  Bd6 {[%clk 0:14:37]} 6. O-O {[%clk 0:15:12]}  O-O {[%clk 0:14:34]} 7. Bb2 {[%clk 0:15:13]}  cxd4 {[%clk 0:14:20]} 8. exd4 {[%clk 0:15:16]}  b6 {[%clk 0:14:21]} 9. Nbd2 {[%clk 0:15:05]}  a5 {[%clk 0:14:10]} 10. a4 {[%clk 0:14:01]}  Ba6 {[%clk 0:13:57]} 11. c4 {[%clk 0:13:55]}  Nc6 {[%clk 0:13:33]} 12. Rc1 {[%clk 0:13:58]}  Nb4 {[%clk 0:13:06]} 13. Bb1 {[%clk 0:13:59]}  Rc8 {[%clk 0:12:59]} 14. Re1 {[%clk 0:14:00]}  Bf4 {[%clk 0:12:30]} 15. Ne5 {[%clk 0:12:43]}  Nc6 {[%clk 0:09:44]} 16. Nef3 {[%clk 0:12:37]}  Re8 {[%clk 0:09:28]} 17. g3 {[%clk 0:12:19]}  Bh6 {[%clk 0:09:31]} 18. h4 {[%clk 0:11:06]}  g6 {[%clk 0:09:28]} 19. Ng5 {[%clk 0:10:36]}  Bg7 {[%clk 0:04:49]} 20. Ndf3 {[%clk 0:10:24]}  Rc7 {[%clk 0:03:54]} 21. Ne5 {[%clk 0:09:42]}  Bb7 {[%clk 0:03:28]} 22. c5 {[%clk 0:07:56]}  Nxe5 {[%clk 0:02:16]} 23. dxe5 {[%clk 0:07:20]}  Nd7 {[%clk 0:02:19]} 24. cxb6 {[%clk 0:07:24]}  Rxc1 {[%clk 0:02:23]} 25. Qxc1 {[%clk 0:07:27]}  h6 {[%clk 0:01:56]} 26. Nxf7 {[%clk 0:04:20]}  Kxf7 {[%clk 0:02:00]} 27. Bd4 {[%clk 0:04:23]}  Nf8 {[%clk 0:01:32]} 28. Qd2 {[%clk 0:02:35]}  g5 {[%clk 0:00:43]} 29. Rc1 {[%clk 0:02:01]}  gxh4 {[%clk 0:00:30]} 30. Qf4+ {[%clk 0:01:48]}  Kg8 {[%clk 0:00:27]} 31. Rc7 {[%clk 0:01:51]}  Re7 {[%clk 0:00:09]} 32. Qxh4 {[%clk 0:01:54]}  Nd7 {[%clk 0:00:08]} 33. Rxb7 {[%clk 0:01:51]}  Qf8 {[%clk 0:00:07]} 34. Rc7 {[%clk 0:01:36]}  Nxe5 {[%clk 0:00:06]} 35. Bxe5 {[%clk 0:01:25]} 1-0

[Event "Grandmaster Triathlon (GM1)"]
[Site "Biel, CH"]
[Date "2025.07.13"]
[Round "2"]
[White "Fedoseev, Vladimir"]
[Black "Murzin, Volodar"]
[Result "1-0"]
[Board "2"]
[TimeControl "900+5"]
[WhiteFideId "24130737"]
[BlackFideId "44155573"]
[WhiteTitle "GM"]
[BlackTitle "GM"]
[WhiteElo "2740"]
[BlackElo "2644"]
[WhiteTeam "SLO"]
[BlackTeam "FID"]
[WhiteClock "0:00:24"]
[BlackClock "0:00:09"]
[Variant "Standard"]

1. d4 {[%clk 0:15:09]}  d5 {[%clk 0:15:08]} 2. c4 {[%clk 0:15:12]}  c6 {[%clk 0:15:11]} 3. cxd5 {[%clk 0:15:15]}  cxd5 {[%clk 0:15:15]} 4. Bf4 {[%clk 0:15:16]}  e6 {[%clk 0:15:16]} 5. Qb3 {[%clk 0:14:55]}  Bd6 {[%clk 0:14:12]} 6. Bg3 {[%clk 0:14:35]}  Ne7 {[%clk 0:14:13]} 7. e3 {[%clk 0:14:38]}  Nf5 {[%clk 0:14:14]} 8. Bd3 {[%clk 0:14:11]}  Nxg3 {[%clk 0:14:15]} 9. hxg3 {[%clk 0:14:14]}  Nc6 {[%clk 0:13:57]} 10. Nc3 {[%clk 0:14:13]}  Bd7 {[%clk 0:13:38]} 11. Nf3 {[%clk 0:14:05]}  h6 {[%clk 0:09:13]} 12. a3 {[%clk 0:13:27]}  a6 {[%clk 0:08:01]} 13. O-O {[%clk 0:12:15]}  O-O {[%clk 0:07:50]} 14. e4 {[%clk 0:11:57]}  dxe4 {[%clk 0:07:34]} 15. Nxe4 {[%clk 0:12:00]}  Be7 {[%clk 0:07:35]} 16. Rad1 {[%clk 0:11:15]}  Na5 {[%clk 0:07:04]} 17. Qc3 {[%clk 0:10:30]}  Rc8 {[%clk 0:06:40]} 18. Qd2 {[%clk 0:09:11]}  Bc6 {[%clk 0:04:15]} 19. Nc5 {[%clk 0:07:42]}  Bd5 {[%clk 0:03:40]} 20. b4 {[%clk 0:05:54]}  Nc4 {[%clk 0:03:41]} 21. Bxc4 {[%clk 0:05:48]}  Bxc4 {[%clk 0:03:44]} 22. Rfe1 {[%clk 0:05:47]}  Bd5 {[%clk 0:03:40]} 23. Ne5 {[%clk 0:05:45]}  Rc7 {[%clk 0:03:43]} 24. a4 {[%clk 0:05:34]}  a5 {[%clk 0:03:25]} 25. b5 {[%clk 0:04:21]}  b6 {[%clk 0:01:57]} 26. Ncd3 {[%clk 0:03:29]}  Qa8 {[%clk 0:01:38]} 27. Rc1 {[%clk 0:02:25]}  Rfc8 {[%clk 0:01:27]} 28. Rxc7 {[%clk 0:02:13]}  Rxc7 {[%clk 0:01:31]} 29. Nxf7 {[%clk 0:02:01]}  Bxg2 {[%clk 0:00:44]} 30. Nfe5 {[%clk 0:01:18]}  Bh1 {[%clk 0:00:24]} 31. Nc6 {[%clk 0:00:38]}  Bxc6 {[%clk 0:00:25]} 32. bxc6 {[%clk 0:00:41]}  Qxc6 {[%clk 0:00:27]} 33. Qe3 {[%clk 0:00:46]}  Qd6 {[%clk 0:00:08]} 34. Nf4 {[%clk 0:00:40]}  Bg5 {[%clk 0:00:08]} 35. Qb3 {[%clk 0:00:34]}  Qb4 {[%clk 0:00:07]} 36. Qxe6+ {[%clk 0:00:37]}  Rf7 {[%clk 0:00:10]} 37. Rc1 {[%clk 0:00:21]}  Qe7 {[%clk 0:00:09]} 38. Rc8+ {[%clk 0:00:24]} 1-0

[Event "Grandmaster Triathlon (GM1)"]
[Site "Biel, CH"]
[Date "2025.07.13"]
[Round "2"]
[White "Salem, A.R. Saleh"]
[Black "Wojtaszek, Radoslaw"]
[Result "0-1"]
[Board "3"]
[TimeControl "900+5"]
[WhiteFideId "9301348"]
[BlackFideId "1118358"]
[WhiteTitle "GM"]
[BlackTitle "GM"]
[WhiteElo "2637"]
[BlackElo "2657"]
[WhiteTeam "UAE"]
[BlackTeam "POL"]
[WhiteClock "0:00:09"]
[BlackClock "0:00:29"]
[Variant "Standard"]

1. d4 {[%clk 0:15:09]}  Nf6 {[%clk 0:15:09]} 2. c4 {[%clk 0:15:12]}  e6 {[%clk 0:15:13]} 3. Nc3 {[%clk 0:15:12]}  Bb4 {[%clk 0:15:16]} 4. a3 {[%clk 0:15:16]}  Bxc3+ {[%clk 0:15:17]} 5. bxc3 {[%clk 0:15:19]}  c5 {[%clk 0:15:19]} 6. f3 {[%clk 0:15:22]}  Nc6 {[%clk 0:15:19]} 7. e4 {[%clk 0:15:26]}  d6 {[%clk 0:15:22]} 8. Ne2 {[%clk 0:15:29]}  Qc7 {[%clk 0:15:14]} 9. Bg5 {[%clk 0:14:09]}  Nd7 {[%clk 0:15:02]} 10. Ng3 {[%clk 0:13:32]}  Na5 {[%clk 0:15:06]} 11. Bd3 {[%clk 0:12:53]}  b6 {[%clk 0:15:01]} 12. O-O {[%clk 0:11:19]}  h6 {[%clk 0:12:54]} 13. Bc1 {[%clk 0:09:32]}  Ba6 {[%clk 0:12:45]} 14. f4 {[%clk 0:09:35]}  Bxc4 {[%clk 0:12:15]} 15. Bxc4 {[%clk 0:08:34]}  Nxc4 {[%clk 0:12:18]} 16. f5 {[%clk 0:06:06]}  e5 {[%clk 0:12:13]} 17. f6 {[%clk 0:06:07]}  g6 {[%clk 0:11:36]} 18. a4 {[%clk 0:05:13]}  cxd4 {[%clk 0:06:58]} 19. cxd4 {[%clk 0:05:13]}  exd4 {[%clk 0:07:02]} 20. Ne2 {[%clk 0:04:21]}  Qc5 {[%clk 0:06:23]} 21. Nxd4 {[%clk 0:03:51]}  Nde5 {[%clk 0:06:11]} 22. Kh1 {[%clk 0:03:33]}  O-O-O {[%clk 0:05:14]} 23. a5 {[%clk 0:03:36]}  Kb7 {[%clk 0:04:48]} 24. Nb3 {[%clk 0:02:40]}  Qc6 {[%clk 0:04:45]} 25. axb6 {[%clk 0:02:14]}  axb6 {[%clk 0:04:46]} 26. Nd4 {[%clk 0:02:17]}  Qxe4 {[%clk 0:03:57]} 27. Nb5 {[%clk 0:01:17]}  Ra8 {[%clk 0:04:00]} 28. Rxa8 {[%clk 0:00:55]}  Rxa8 {[%clk 0:04:03]} 29. Qxd6 {[%clk 0:00:57]}  Qd3 {[%clk 0:02:26]} 30. Qe7+ {[%clk 0:00:38]}  Kc6 {[%clk 0:02:19]} 31. Re1 {[%clk 0:00:19]}  Kxb5 {[%clk 0:02:16]} 32. Bf4 {[%clk 0:00:23]}  Nc6 {[%clk 0:00:50]} 33. Qxf7 {[%clk 0:00:23]}  Ra2 {[%clk 0:00:53]} 34. Qe6 {[%clk 0:00:19]}  Rf2 {[%clk 0:00:56]} 35. h3 {[%clk 0:00:08]}  Rxf4 {[%clk 0:00:57]} 36. f7 {[%clk 0:00:11]}  Qf5 {[%clk 0:00:50]} 37. f8=Q {[%clk 0:00:02]}  Qxf8 {[%clk 0:00:40]} 38. Qd5+ {[%clk 0:00:10]}  Ka6 {[%clk 0:00:32]} 39. Kh2 {[%clk 0:00:08]}  Qc5 {[%clk 0:00:26]} 40. Ra1+ {[%clk 0:00:09]}  N4a5 {[%clk 0:00:29]} 41. Qd3+ {[%clk 0:00:10]}  Rc4 {[%clk 0:00:32]} 42. Kh1 {[%clk 0:00:12]}  Qd4 {[%clk 0:00:35]} 43. Qf1 {[%clk 0:00:14]}  Qf4 {[%clk 0:00:31]} 44. Qd3 {[%clk 0:00:17]}  b5 {[%clk 0:00:29]} 45. Qa3 {[%clk 0:00:17]}  b4 {[%clk 0:00:28]} 46. Qd3 {[%clk 0:00:21]}  Qd4 {[%clk 0:00:30]} 47. Qf1 {[%clk 0:00:24]}  b3 {[%clk 0:00:34]} 48. Rd1 {[%clk 0:00:25]}  Qc5 {[%clk 0:00:33]} 49. Qe2 {[%clk 0:00:16]}  Qe5 {[%clk 0:00:31]} 50. Qd3 {[%clk 0:00:08]}  b2 {[%clk 0:00:34]} 51. Qd7 {[%clk 0:00:09]}  Rc1 {[%clk 0:00:29]} 0-1

[Event "Grandmaster Triathlon (GM1)"]
[Site "Biel, CH"]
[Date "2025.07.13"]
[Round "3"]
[White "Svane, Frederik"]
[Black "Salem, A.R. Saleh"]
[Result "1/2-1/2"]
[Board "1"]
[TimeControl "900+5"]
[WhiteFideId "12923044"]
[BlackFideId "9301348"]
[WhiteTitle "GM"]
[BlackTitle "GM"]
[WhiteElo "2487"]
[BlackElo "2637"]
[WhiteTeam "GER"]
[BlackTeam "UAE"]
[WhiteClock "0:01:37"]
[BlackClock "0:00:14"]
[Variant "Standard"]

1. e4 {[%clk 0:15:01]}  c5 {[%clk 0:14:34]} 2. Nf3 {[%clk 0:14:59]}  d6 {[%clk 0:14:37]} 3. Bb5+ {[%clk 0:14:44]}  Nd7 {[%clk 0:14:37]} 4. a4 {[%clk 0:14:44]}  Ngf6 {[%clk 0:14:38]} 5. Nc3 {[%clk 0:14:45]}  a6 {[%clk 0:14:28]} 6. Bc4 {[%clk 0:14:48]}  e6 {[%clk 0:13:45]} 7. d4 {[%clk 0:14:25]}  cxd4 {[%clk 0:13:49]} 8. Nxd4 {[%clk 0:14:28]}  Ne5 {[%clk 0:12:44]} 9. Ba2 {[%clk 0:14:25]}  Bd7 {[%clk 0:12:24]} 10. Be3 {[%clk 0:12:41]}  Qc7 {[%clk 0:11:30]} 11. Qe2 {[%clk 0:12:10]}  Rc8 {[%clk 0:11:34]} 12. f3 {[%clk 0:11:03]}  Be7 {[%clk 0:11:33]} 13. O-O {[%clk 0:09:48]}  O-O {[%clk 0:11:34]} 14. a5 {[%clk 0:09:37]}  Nc4 {[%clk 0:10:09]} 15. Bxc4 {[%clk 0:09:38]}  Qxc4 {[%clk 0:10:13]} 16. Qxc4 {[%clk 0:09:33]}  Rxc4 {[%clk 0:10:17]} 17. Rfd1 {[%clk 0:09:37]}  Rfc8 {[%clk 0:10:09]} 18. Nde2 {[%clk 0:09:21]}  h6 {[%clk 0:09:44]} 19. Rd4 {[%clk 0:07:54]}  R4c7 {[%clk 0:05:41]} 20. Rd2 {[%clk 0:07:07]}  e5 {[%clk 0:05:20]} 21. Kf2 {[%clk 0:07:04]}  Be6 {[%clk 0:05:21]} 22. Ke1 {[%clk 0:07:08]}  Kf8 {[%clk 0:04:24]} 23. Kd1 {[%clk 0:06:46]}  Ke8 {[%clk 0:03:05]} 24. Nc1 {[%clk 0:06:39]}  Rc6 {[%clk 0:01:12]} 25. Nd5 {[%clk 0:03:15]}  Bd8 {[%clk 0:01:16]} 26. Ne2 {[%clk 0:02:22]}  Bxd5 {[%clk 0:00:13]} 27. exd5 {[%clk 0:02:25]}  Rc4 {[%clk 0:00:12]} 28. c3 {[%clk 0:02:30]}  Nd7 {[%clk 0:00:07]} 29. Kc2 {[%clk 0:02:06]}  Bg5 {[%clk 0:00:10]} 30. Bxg5 {[%clk 0:02:07]}  hxg5 {[%clk 0:00:15]} 31. b3 {[%clk 0:02:06]}  Rh4 {[%clk 0:00:09]} 32. h3 {[%clk 0:01:57]}  g6 {[%clk 0:00:14]} 33. c4 {[%clk 0:01:37]} 1/2-1/2